bitfinex/quotes_SOLUSD_20251030
["timestamp","ask_amount","ask_price","bid_price","bid_amount"]
[1761849079915,0.86,182.96,182.9,5.46746856]
[1761849080119,0.86,182.96,182.93,8.67088353]
[1761849080921,0.66,182.95,182.93,8.67088353]
[1761849081634,6.12603512,182.95,182.92,8.67088353]
[1761849082014,0.66,182.95,182.92,8.67088353]
[1761849083108,0.66,182.95,182.91,8.67088353]
[1761849083313,6.12613045,182.95,182.91,8.67088353]
[1761849083512,6.12613045,182.95,182.85,8.67088353]
[1761849083513,20.592,182.92,182.85,8.67088353]
[1761849083711,20.592,182.92,182.85,9.32088353]
[1761849083914,21.252,182.92,182.85,9.32088353]
[1761849084435,20.592,182.91,182.85,9.32088353]
[1761849084641,20.592,182.91,182.86,8.67088353]
[1761849084813,29.92288353,182.91,182.85,9.32088353]
[1761849085637,29.92288353,182.91,182.78,14.32714631]
[1761849085638,8.67088353,182.86,182.78,14.32714631]
[1761849085812,6.12746856,182.9,182.79,19.14765577]
[1761849085813,8.67088353,182.84,182.79,19.14765577]
[1761849086019,8.67088353,182.84,182.79,27.8185393]
[1761849086218,8.67088353,182.84,182.79,28.4685393]
[1761849086440,8.67088353,182.87,182.81,8.67088353]
[1761849086943,8.67088353,182.87,182.81,9.32088353]
[1761849087523,8.67088353,182.87,182.82,5.46986106]
[1761849087739,13.66723861,182.92,182.83,8.67088353]
[1761849087926,8.67088353,182.89,182.84,8.67088353]
[1761849088242,8.67088353,182.88,182.83,9.32088353]
[1761849088941,35.84807534,182.91,182.83,9.32088353]
[1761849088942,49.51599945,182.91,182.83,8.67088353]
[1761849089240,9.33088353,182.88,182.82,14.14074459]
[1761849089547,14.79900526,182.88,182.82,14.14074459]
[1761849090442,8.67088353,182.84,182.78,5.4710581]
[1761849090633,8.67088353,182.85,182.78,67.8210581]
[1761849090834,8.67088353,182.85,182.8,8.67088353]
[1761849091141,9.33088353,182.85,182.79,8.67088353]
[1761849091718,14.79985999,182.85,182.79,14.1413475]
[1761849092040,8.67088353,182.84,182.79,5.47046397]
[1761849092340,8.67088353,182.82,182.79,61.7]
[1761849092748,8.67088353,182.8,182.75,61.7]
[1761849093046,8.67088353,182.77,182.72,16.21187352]
[1761849093221,8.67088353,182.78,182.73,0.65]
[1761849093629,20.592,182.82,182.76,8.67088353]
[1761849093838,20.592,182.8,182.76,5.47136745]
[1761849094039,8.67088353,182.82,182.76,14.14225098]
[1761849094527,29.92288353,182.83,182.77,8.67088353]
[1761849094829,8.67088353,182.82,182.76,14.79225098]
[1761849095031,8.67088353,182.79,182.74,5.47200182]
[1761849095343,8.67088353,182.79,182.72,6.89098999]
[1761849095344,8.67088353,182.78,182.72,21.03444993]
[1761849095926,8.67088353,182.78,182.73,8.67088353]
[1761849096160,8.67088353,182.79,182.73,9.32088353]
[1761849096651,8.67088353,182.78,182.73,0.65]
[1761849097025,8.67088353,182.78,182.74,5.47225566]
[1761849098541,8.67088353,182.78,182.73,14.79337404]
[1761849098749,14.80195125,182.78,182.73,14.14337404]
[1761849098963,9.78882769,182.82,182.73,14.14337404]
[1761849099265,8.67088353,182.8,182.75,14.14283975]
[1761849099427,8.67088353,182.81,182.75,14.14283975]
[1761849099624,8.67088353,182.81,182.75,14.83283975]
[1761849100150,20.592,182.8,182.76,9.36088353]
[1761849100531,14.14072675,182.83,182.77,9.36088353]
[1761849100870,8.67088353,182.82,182.77,9.36088353]
[1761849101223,8.67088353,182.82,182.78,5.4710581]
[1761849101430,29.26288353,182.85,182.79,8.67088353]
[1761849101629,29.26288353,182.85,182.8,8.67088353]
[1761849101630,8.67088353,182.85,182.8,8.67088353]
[1761849101932,8.67088353,182.85,182.81,0.69]
[1761849102132,14.81931141,182.87,182.81,9.36088353]
[1761849102331,9.35088353,182.9,182.84,8.67088353]
[1761849102554,9.35088353,182.9,182.82,0.69]
[1761849102555,8.67088353,182.9,182.82,0.69]
[1761849102754,8.67088353,182.89,182.84,8.67088353]
[1761849103150,8.67088353,182.89,182.79,31.952]
[1761849103151,5.46689794,182.92,182.86,8.67088353]
[1761849103330,8.67088353,182.91,182.87,5.4683655]
[1761849103536,34.72978147,182.92,182.87,5.4683655]
[1761849103742,26.73889794,182.92,182.87,5.4683655]
[1761849104049,26.73889794,182.92,182.84,14.14010529]
[1761849104050,8.67088353,182.9,182.84,14.14010529]
[1761849104264,0.68,182.91,182.84,5.46922176]
[1761849104456,8.67088353,182.86,182.78,0.69]
[1761849104671,8.67088353,182.83,182.78,8.67088353]
[1761849104973,8.67088353,182.83,182.78,9.36088353]
[1761849105143,8.67088353,182.84,182.78,9.36088353]
[1761849105348,8.67088353,182.84,182.79,5.47075879]
[1761849105548,8.67088353,182.86,182.8,8.67088353]
[1761849105780,8.67088353,182.86,182.81,0.69]
[1761849106344,34.73128353,182.87,182.81,9.36088353]
[1761849107273,34.73128353,182.87,182.82,5.46986106]
[1761849107467,8.67088353,182.86,182.82,5.46986106]
[1761849108170,8.67088353,182.86,182.82,67.16986106]
[1761849108668,29.26288353,182.87,182.83,0.69]
[1761849108845,14.13870782,182.89,182.83,71.06088353]
[1761849109039,15.2559524,182.92,182.84,8.67088353]
[1761849109243,8.67088353,182.9,182.84,71.06088353]
[1761849109666,29.26288353,182.9,182.84,71.06088353]
[1761849110253,29.26288353,182.9,182.85,5.46896363]
[1761849110656,20.592,182.9,182.85,14.13984716]
[1761849110905,0.2,182.96,182.89,8.67088353]
[1761849111044,0.2,182.96,182.86,0.69]
[1761849111045,0.2,182.96,182.88,20.592]
[1761849111246,0.2,182.96,182.92,8.67088353]
[1761849111578,0.2,182.96,182.88,20.592]
[1761849111579,0.2,182.96,182.94,8.67088353]
[1761849111785,0.2,182.96,182.89,21.282]
[1761849112074,0.2,182.96,182.93,8.67088353]
[1761849112280,0.2,182.96,182.93,14.13733769]
[1761849112485,0.2,182.96,182.93,14.82733769]
[1761849112988,0.2,182.96,182.91,0.69]
[1761849113165,0.2,182.96,182.92,8.67088353]
[1761849114180,0.2,182.96,182.94,8.67088353]
[1761849114381,0.2,182.96,182.92,14.13761393]
[1761849114586,0.88,182.96,182.92,14.13761393]
[1761849114757,0.2,182.96,182.92,5.4667304]
[1761849115261,0.2,182.96,182.91,14.13799974]
[1761849115466,0.2,182.96,182.91,9.36088353]
[1761849115467,8.87088353,182.96,182.91,9.36088353]
[1761849115669,0.2,182.96,182.92,0.69]
[1761849115908,9.98882769,183.0,182.96,9.78882769]
[1761849115909,0.2,183.0,182.96,9.78882769]
[1761849116090,0.2,183.0,182.99,5.46477949]
[1761849116264,0.2,183.0,182.99,14.13566302]
[1761849116463,0.2,183.0,182.99,14.82566302]
[1761849117962,0.2,183.0,182.99,0.69]
[1761849118162,0.2,183.0,182.97,5.46534718]
[1761849118371,0.2,183.0,182.96,8.67088353]
[1761849118572,15.01539053,183.0,182.94,8.67088353]
[1761849119965,15.01539053,183.0,182.93,0.69]
[1761849120166,8.67088353,182.99,182.93,9.36088353]
[1761849120375,8.67088353,182.96,182.9,8.67088353]
[1761849120600,10.46882769,182.99,182.88,0.69]
[1761849120601,8.67088353,182.95,182.88,0.69]
[1761849120896,8.67088353,182.95,182.88,9.36088353]
[1761849121090,8.67088353,182.95,182.89,8.67088353]
[1761849121695,8.67088353,182.95,182.88,9.36088353]
[1761849121696,8.67088353,182.94,182.88,9.36088353]
[1761849121996,8.67088353,182.94,182.85,5.46896363]
[1761849121997,8.67088353,182.93,182.87,8.67088353]
[1761849122183,14.13765829,182.93,182.87,14.13914356]
[1761849122993,8.67088353,182.92,182.86,5.46866289]
[1761849123169,8.67088353,182.92,182.86,14.13954642]
[1761849124278,14.13797046,182.92,182.86,14.13954642]
[1761849124888,5.46708693,182.92,182.86,14.13954642]
[1761849125089,14.13797046,182.92,182.86,14.13954642]
[1761849125393,20.592,182.92,182.87,9.36088353]
[1761849125792,20.592,182.92,182.88,9.36088353]
[1761849126097,20.592,182.92,182.88,0.69]
[1761849126297,20.592,182.92,182.89,0.69]
[1761849126503,26.05891013,182.92,182.86,5.46865324]
[1761849126805,8.67088353,182.9,182.84,9.36088353]
[1761849126970,8.67088353,182.9,182.84,14.83014627]
[1761849127173,8.67088353,182.89,182.82,6.15960655]
[1761849127378,8.67088353,182.88,182.82,9.36088353]
[1761849127596,8.67088353,182.88,182.83,8.67088353]
[1761849127776,9.35088353,182.89,182.83,9.36088353]
[1761849128497,14.81892147,182.89,182.83,9.36088353]
[1761849128677,8.67088353,182.89,182.83,14.14040904]
[1761849128998,20.592,182.91,182.88,8.67088353]
[1761849129183,8.67088353,182.94,182.89,0.72]
[1761849129579,14.13717042,182.94,182.89,0.72]
[1761849129782,8.67088353,182.92,182.86,0.72]
[1761849129981,8.67088353,182.92,182.86,8.67088353]
[1761849130333,8.67088353,182.91,182.86,8.67088353]
[1761849130482,8.67088353,182.89,182.84,6.1892127]
[1761849130682,8.67088353,182.89,182.84,5.4692127]
[1761849130885,8.67088353,182.85,182.79,0.72]
[1761849131221,0.65,182.88,182.79,0.72]
[1761849131222,8.67088353,182.84,182.79,0.72]
[1761849131576,8.67088353,182.84,182.79,9.39088353]
[1761849131774,8.67088353,182.84,182.79,0.72]
[1761849132501,8.67088353,182.82,182.76,9.39088353]
[1761849132697,0.65,182.83,182.77,9.39088353]
[1761849132698,8.67088353,182.83,182.77,9.39088353]
[1761849133093,8.67088353,182.82,182.77,0.72]
[1761849133286,0.65,182.84,182.77,9.39088353]
[1761849133287,8.67088353,182.83,182.77,9.39088353]
[1761849133987,8.67088353,182.83,182.77,0.72]
[1761849134194,8.67088353,182.85,182.79,8.67088353]
[1761849135387,5.71289242,182.85,182.79,5.71289242]
[1761849135705,11.18205372,182.85,182.79,11.18345905]
[1761849136297,5.71289242,182.85,182.79,11.18345905]
[1761849136604,31.77361454,182.86,182.8,6.37289242]
[1761849136810,5.71289242,182.85,182.8,6.37289242]
[1761849137296,20.592,182.86,182.81,6.37289242]
[1761849137494,5.71289242,182.88,182.83,5.71289242]
[1761849137700,5.71289242,182.88,182.81,61.7]
[1761849137701,5.71289242,182.86,182.81,61.7]
[1761849138008,5.71289242,182.85,182.81,61.7]
[1761849138489,0.69,182.87,182.81,73.5430485]
[1761849138688,19.13415632,182.92,182.83,5.71289242]
[1761849138689,20.592,182.86,182.83,5.71289242]
[1761849138896,20.592,182.86,182.83,67.41289242]
[1761849139084,20.592,182.86,182.84,0.66]
[1761849139284,26.99489242,182.9,182.84,68.07289242]
[1761849139492,6.40289242,182.9,182.84,68.07289242]
[1761849139693,11.87050252,182.9,182.84,73.54187886]
[1761849139982,5.71289242,182.86,182.84,61.7]
[1761849140183,5.71289242,182.86,182.81,72.88277064]
[1761849140384,5.71289242,182.86,182.81,73.54277064]
[1761849140721,5.71289242,182.85,182.8,5.71289242]
[1761849140960,5.71289242,182.82,182.76,67.41289242]
[1761849141218,5.71289242,182.81,182.76,5.47159523]
[1761849141402,5.71289242,182.81,182.76,6.13159523]
[1761849141605,5.71289242,182.82,182.77,0.66]
[1761849141903,11.18278885,182.82,182.77,6.1312604]
[1761849142293,11.18278885,182.82,182.77,11.84415282]
[1761849142618,5.71289242,182.81,182.75,5.71289242]
[1761849142822,5.71289242,182.81,182.75,6.37289242]
[1761849143110,5.71289242,182.8,182.75,6.13195622]
[1761849143308,5.71289242,182.8,182.74,5.71289242]
[1761849143685,0.69,182.81,182.75,0.66]
[1761849143884,0.69,182.81,182.73,67.37255048]
[1761849143885,5.71289242,182.8,182.73,67.37255048]
[1761849144184,5.71289242,182.74,182.73,0.2]
[1761849144387,21.282,182.79,182.73,0.2]
[1761849144600,5.71289242,182.74,182.73,0.2]
[1761849144788,5.71289242,182.75,182.73,0.2]
[1761849145120,5.71289242,182.76,182.73,0.2]
[1761849145494,0.69,182.78,182.73,0.2]
[1761849145495,5.71289242,182.75,182.73,0.2]
[1761849145684,11.18503346,182.75,182.73,0.2]
[1761849146885,6.40289242,182.74,182.73,0.2]
[1761849147219,16.19172011,182.74,182.73,0.2]
[1761849147916,21.66397577,182.74,182.73,0.2]
[1761849149746,20.592,182.74,182.73,0.2]
[1761849151423,32.46714808,182.74,182.73,0.2]
[1761849151600,42.25597577,182.74,182.73,0.2]
[1761849151802,21.66397577,182.74,182.73,0.2]
[1761849152217,42.25597577,182.74,182.73,0.2]
[1761849152826,21.66397577,182.74,182.73,0.2]
[1761849153532,9.78882769,182.73,182.72,6.89098999]
[1761849153743,16.19172011,182.73,182.72,6.89098999]
[1761849153906,21.66427524,182.73,182.72,6.89098999]
[1761849154736,21.16427524,182.73,182.72,6.89098999]
[1761849155998,11.87544755,182.73,182.72,6.89098999]
[1761849156541,21.66427524,182.73,182.72,6.89098999]
[1761849158603,21.66427524,182.73,182.72,1e-08]
[1761849158806,30.38082769,182.69,182.62,0.2]
[1761849159006,5.71289242,182.63,182.62,0.2]
[1761849159225,5.71289242,182.64,182.62,0.87]
[1761849159737,5.71289242,182.64,182.62,0.2]
[1761849161054,11.18820311,182.64,182.62,0.2]
[1761849161263,36.76372011,182.63,182.62,0.2]
[1761849162259,21.64727177,182.63,182.62,1e-08]
[1761849163438,9.78882769,182.59,182.58,0.2]
[1761849163659,15.50172011,182.59,182.58,0.2]
[1761849163829,16.17172011,182.59,182.58,0.2]
[1761849164222,20.9784713,182.59,182.58,0.2]
[1761849167339,21.6484713,182.59,182.58,0.2]
[1761849168143,21.6484713,182.59,182.58,1e-08]
[1761849169947,20.9784713,182.59,182.58,1e-08]
[1761849170962,21.6484713,182.59,182.58,1e-08]
[1761849173674,30.38082769,182.56,182.55,0.2]
[1761849173891,41.57137129,182.56,182.55,0.2]
[1761849174050,42.24137129,182.56,182.55,0.2]
[1761849176999,45.10544663,182.56,182.55,0.2]
[1761849177198,38.72255421,182.56,182.55,0.2]
[1761849177361,44.43544663,182.56,182.55,0.2]
[1761849181058,45.10544663,182.56,182.55,0.2]
[1761849181478,44.43544663,182.56,182.55,0.2]
[1761849182180,45.10544663,182.56,182.55,0.2]
[1761849182378,45.10544663,182.56,182.55,1e-08]
[1761849182574,30.38082769,182.52,182.49,0.1]
[1761849182763,15.50172011,182.5,182.49,0.1]
[1761849183171,20.98117216,182.5,182.49,0.1]
[1761849183575,21.65117216,182.5,182.49,0.1]
[1761849184185,21.65117216,182.5,182.49,1e-08]
[1761849184186,27.36406458,182.5,182.49,1e-08]
[1761849184386,30.38082769,182.46,182.42,0.1]
[1761849184562,15.50172011,182.43,182.42,0.1]
[1761849185191,20.98327467,182.43,182.42,0.1]
[1761849185358,20.592,182.39,182.33,6.99098999]
[1761849185559,30.38082769,182.4,182.33,6.99098999]
[1761849185560,15.50172011,182.34,182.33,6.99098999]
[1761849185800,9.78882769,182.34,182.33,6.99098999]
[1761849185970,5.71289242,182.34,182.33,7.66098999]
[1761849186175,15.50172011,182.34,182.33,7.66098999]
[1761849186499,15.50172011,182.34,182.33,6.99098999]
[1761849187099,20.98598028,182.34,182.33,6.99098999]
[1761849187869,21.58598028,182.34,182.33,6.99098999]
[1761849188058,30.38082769,182.31,182.12,27.45313348]
[1761849188282,36.09372011,182.31,182.24,0.67]
[1761849188677,20.592,182.31,182.3,0.77]
[1761849188868,30.38082769,182.33,182.3,0.77]
[1761849189069,5.71289242,182.31,182.3,0.77]
[1761849189591,30.38082769,182.33,182.3,0.77]
[1761849189767,9.78882769,182.41,182.32,5.71289242]
[1761849189966,5.71289242,182.38,182.32,5.71289242]
[1761849190162,5.71289242,182.33,182.3,0.1]
[1761849190486,9.78882769,182.39,182.31,0.69]
[1761849190664,5.71289242,182.33,182.31,0.69]
[1761849191082,6.40289242,182.32,182.3,0.1]
[1761849191405,15.50172011,182.31,182.2,5.71289242]
[1761849191599,5.71289242,182.26,182.24,0.69]
[1761849191908,5.71289242,182.28,182.24,0.69]
[1761849192486,20.592,182.29,182.24,0.69]
[1761849192686,9.78882769,182.32,182.24,0.69]
[1761849192888,9.78882769,182.37,182.27,5.71289242]
[1761849193097,6.31424326,182.43,182.29,19.20017554]
[1761849193098,5.71289242,182.34,182.29,19.20017554]
[1761849193408,5.71289242,182.35,182.3,0.69]
[1761849193794,5.71289242,182.34,182.3,0.69]
[1761849194012,5.71289242,182.35,182.3,0.69]
[1761849194214,5.71289242,182.34,182.3,0.69]
[1761849194392,5.71289242,182.33,182.3,0.69]
[1761849195191,5.71289242,182.33,182.3,6.17532625]
[1761849195609,5.71289242,182.33,182.31,0.67]
[1761849196196,9.78882769,182.36,182.31,0.67]
[1761849196399,5.71289242,182.33,182.31,0.67]
[1761849196822,30.38082769,182.36,182.27,0.67]
[1761849196823,5.71289242,182.32,182.27,0.67]
[1761849197007,5.71289242,182.31,182.28,0.67]
[1761849197203,5.71289242,182.31,182.28,6.15606523]
[1761849197416,8.73152406,182.31,182.28,0.67]
[1761849197609,8.73152406,182.31,182.27,5.48624467]
[1761849197610,8.73152406,182.31,182.29,0.67]
[1761849197932,8.73152406,182.3,182.27,0.67]
[1761849198139,8.73152406,182.28,182.27,0.67]
[1761849198314,8.73152406,182.28,182.24,0.67]
[1761849198506,8.73152406,182.27,182.24,0.67]
[1761849198699,8.73152406,182.28,182.24,0.67]
[1761849199219,8.73152406,182.28,182.25,5.48696844]
[1761849199411,8.73152406,182.28,182.26,0.67]
[1761849199727,8.73152406,182.27,182.26,0.67]
[1761849201004,8.73152406,182.28,182.26,0.67]
[1761849201417,5.48520223,182.31,182.26,6.15649993]
[1761849201418,8.73152406,182.31,182.26,6.15649993]
[1761849201605,9.78882769,182.35,182.27,0.67]
[1761849201808,8.73152406,182.34,182.28,8.73152406]
[1761849202125,9.78882769,182.37,182.29,8.73152406]
[1761849202432,9.78882769,182.37,182.28,8.73152406]
[1761849202596,8.73152406,182.34,182.28,8.73152406]
[1761849202800,8.73152406,182.35,182.29,9.40152406]
[1761849203000,8.73152406,182.34,182.29,0.67]
[1761849203215,15.27233304,182.37,182.31,5.48516263]
[1761849203406,8.73152406,182.34,182.31,5.48516263]
[1761849203610,8.73152406,182.34,182.31,0.67]
[1761849203826,8.73152406,182.34,182.32,0.67]
[1761849204132,8.73152406,182.35,182.32,0.67]
[1761849204726,18.52035175,182.37,182.32,0.67]
[1761849204931,8.73152406,182.36,182.32,0.67]
[1761849205625,14.21522866,182.36,182.32,0.67]
[1761849205930,5.4837046,182.36,182.32,0.67]
[1761849206235,14.91522866,182.36,182.3,8.73152406]
[1761849206603,9.78882769,182.33,182.29,0.67]
[1761849206834,18.52035175,182.35,182.3,0.67]
[1761849207009,39.11235175,182.35,182.3,9.40152406]
[1761849207330,35.86484862,182.35,182.3,14.88691253]
[1761849207706,35.86484862,182.35,182.31,0.67]
[1761849207902,20.592,182.35,182.31,9.40152406]
[1761849208130,20.592,182.35,182.32,8.73152406]
[1761849208311,20.592,182.35,182.32,9.40152406]
[1761849208514,20.592,182.35,182.33,0.67]
[1761849209119,13.70758275,182.39,182.33,0.67]
[1761849209120,9.78882769,182.39,182.34,8.73152406]
[1761849209314,24.00340041,182.39,182.33,9.40152406]
[1761849209516,8.73152406,182.38,182.33,0.67]
[1761849209721,8.73152406,182.38,182.33,6.15453539]
[1761849209919,8.73152406,182.37,182.31,14.21644059]
[1761849210329,20.592,182.36,182.32,9.40152406]
[1761849210916,26.07570212,182.36,182.32,9.40152406]
[1761849211239,26.07570212,182.36,182.33,0.67]
[1761849211657,20.592,182.36,182.33,9.40152406]
[1761849211833,20.592,182.36,182.34,0.67]
[1761849212156,20.592,182.36,182.31,8.73152406]
[1761849212456,20.592,182.36,182.3,0.67]
[1761849212457,8.73152406,182.35,182.3,0.67]
[1761849212620,8.73152406,182.35,182.3,6.15545652]
[1761849212816,8.73152406,182.35,182.31,0.67]
[1761849213018,14.21557825,182.35,182.31,0.67]
[1761849213322,14.21557825,182.35,182.29,0.67]
[1761849213323,8.73152406,182.33,182.29,0.67]
[1761849213524,8.73152406,182.34,182.29,6.15569955]
[1761849213722,8.73152406,182.34,182.29,14.88722361]
[1761849213929,9.43152406,182.34,182.29,0.67]
[1761849214121,8.73152406,182.33,182.29,0.67]
[1761849214325,8.73152406,182.32,182.26,8.73152406]
[1761849214627,8.73152406,182.32,182.25,0.67]
[1761849214628,8.73152406,182.29,182.25,0.67]
[1761849214829,30.38082769,182.32,182.25,0.67]
[1761849215022,9.78882769,182.31,182.26,14.21819145]
[1761849215222,18.52035175,182.31,182.26,14.21819145]
[1761849215538,18.52035175,182.31,182.27,0.67]
[1761849216242,0.7,182.37,182.28,8.73152406]
[1761849216444,0.7,182.37,182.28,9.40152406]
[1761849216445,29.32352406,182.33,182.28,9.40152406]
[1761849216646,29.32352406,182.33,182.28,0.67]
[1761849216948,8.73152406,182.32,182.29,0.67]
[1761849217451,8.73152406,182.3,182.24,6.15726953]
[1761849217617,10.48882769,182.31,182.25,0.67]
[1761849217618,8.73152406,182.29,182.25,0.67]
[1761849218330,8.73152406,182.3,182.25,0.67]
[1761849218537,14.21750252,182.29,182.25,0.67]
[1761849219043,18.52035175,182.35,182.28,8.73152406]
[1761849219234,39.11235175,182.35,182.29,9.45152406]
[1761849219543,8.73152406,182.36,182.3,9.45152406]
[1761849219949,8.73152406,182.36,182.25,39.79630994]
[1761849219950,8.73152406,182.36,182.31,9.45152406]
[1761849220554,5.48395941,182.35,182.31,0.72]
[1761849221348,14.21548347,182.35,182.31,0.72]
[1761849221732,9.44152406,182.34,182.28,9.45152406]
[1761849222258,8.73152406,182.33,182.28,0.72]
[1761849222622,8.73152406,182.33,182.28,9.45152406]
[1761849222831,5.48486178,182.32,182.28,9.45152406]
[1761849223836,8.73152406,182.3,182.25,9.45152406]
[1761849224025,18.52035175,182.31,182.26,0.72]
[1761849224729,5.48546352,182.3,182.26,0.72]
[1761849224965,24.00559723,182.31,182.26,6.20663693]
[1761849225158,24.00559723,182.31,182.26,0.72]
[1761849225325,24.71559723,182.31,182.26,9.45152406]
[1761849225527,5.48524548,182.31,182.27,0.72]
[1761849225758,14.92676954,182.31,182.26,14.2180164]
[1761849226035,6.19524548,182.31,182.26,14.9380164]
[1761849226339,14.21676954,182.31,182.27,0.72]
[1761849226726,5.48524548,182.31,182.27,0.72]
[1761849226926,14.21676954,182.31,182.27,0.72]
[1761849227736,5.48524548,182.31,182.27,9.45152406]
[1761849228066,20.592,182.32,182.28,8.73152406]
[1761849228254,20.592,182.32,182.28,9.45152406]
[1761849228457,20.592,182.32,182.29,0.72]
[1761849229960,34.80845313,182.32,182.29,0.72]
[1761849230169,34.80845313,182.32,182.27,14.21780424]
[1761849230461,8.73152406,182.31,182.28,0.72]
[1761849231024,29.32352406,182.32,182.28,6.20590529]
[1761849231260,34.80844737,182.32,182.28,6.20590529]
[1761849231636,5.48461849,182.33,182.29,0.72]
[1761849231852,8.73152406,182.32,182.29,0.72]
[1761849232558,20.592,182.34,182.29,0.72]
[1761849232732,20.592,182.34,182.3,8.73152406]
[1761849233142,34.80783933,182.34,182.31,0.72]
[1761849233545,29.32352406,182.34,182.31,0.72]
[1761849233721,9.78882769,182.37,182.31,9.45152406]
[1761849233922,18.52035175,182.37,182.31,9.45152406]
[1761849234146,8.73152406,182.36,182.32,0.72]
[1761849234842,6.19335021,182.38,182.32,0.72]
[1761849235060,8.73152406,182.37,182.32,0.72]
[1761849235233,8.73152406,182.36,182.32,6.20464149]
[1761849235652,8.73152406,182.36,182.33,0.72]
[1761849235953,29.32352406,182.38,182.33,0.72]
[1761849236161,8.73152406,182.36,182.33,0.72]
[1761849237266,26.78532204,182.38,182.3,22.4450289]
[1761849237267,8.73152406,182.35,182.31,5.4850782]
[1761849237466,8.73152406,182.33,182.3,6.20541005]
[1761849237645,8.73152406,182.34,182.3,5.48541005]
[1761849237848,8.73152406,182.34,182.31,0.72]
[1761849238250,8.73152406,182.36,182.31,9.45152406]
[1761849238768,8.73152406,182.36,182.32,0.72]
[1761849239351,8.73152406,182.36,182.32,6.20463762]
[1761849239746,8.73152406,182.36,182.33,0.72]
[1761849240270,26.07510692,182.38,182.33,0.72]
[1761849240476,8.73152406,182.37,182.33,0.72]
[1761849240675,8.73152406,182.37,182.32,5.48463762]
[1761849240676,8.73152406,182.36,182.31,14.93660574]
[1761849240874,8.73152406,182.32,182.28,0.72]
[1761849241065,8.73152406,182.3,182.28,0.72]
[1761849241265,6.19310692,182.38,182.29,8.73152406]
[1761849241568,12.65521349,182.39,182.33,5.48456096]
[1761849241763,20.592,182.37,182.33,5.48456096]
[1761849241965,8.73152406,182.37,182.34,0.72]
[1761849242644,8.73152406,182.36,182.32,5.48477069]
[1761849242844,8.73152406,182.33,182.29,0.72]
[1761849243049,8.73152406,182.32,182.29,0.72]
[1761849243492,8.73152406,182.32,182.29,6.20568489]
[1761849243783,8.73152406,182.33,182.29,6.20568489]
[1761849243971,8.73152406,182.33,182.3,0.72]
[1761849244172,20.592,182.34,182.3,0.72]
[1761849244375,2.8663858,182.39,182.3,0.72]
[1761849244689,2.8663858,182.39,182.31,8.73152406]
[1761849244690,29.32352406,182.37,182.31,8.73152406]
[1761849244850,8.73152406,182.36,182.3,0.72]
[1761849245051,8.73152406,182.34,182.28,9.45152406]
[1761849245263,8.73152406,182.33,182.28,9.45152406]
[1761849245460,8.73152406,182.33,182.29,6.2054794]
[1761849245972,5.48387766,182.36,182.3,0.72]
[1761849246181,8.73152406,182.34,182.3,0.72]
[1761849246474,8.73152406,182.33,182.28,8.73152406]
[1761849246673,5.48387766,182.36,182.24,9.45152406]
[1761849246674,8.73152406,182.3,182.24,9.45152406]
[1761849246884,8.73152406,182.29,182.24,9.45152406]
[1761849247057,8.73152406,182.29,182.25,0.72]
[1761849247391,8.73152406,182.3,182.25,0.72]
[1761849247579,20.592,182.34,182.26,14.21819145]
[1761849247780,8.73152406,182.32,182.27,8.73152406]
[1761849247964,26.07627917,182.34,182.27,9.45152406]
[1761849248162,8.73152406,182.36,182.3,8.73152406]
[1761849248479,8.73152406,182.36,182.31,8.73152406]
[1761849248794,8.73152406,182.37,182.31,8.73152406]
[1761849249084,8.73152406,182.37,182.32,9.45152406]
[1761849249454,0.71,182.39,182.34,5.48426017]
[1761849249778,14.21430575,182.39,182.34,5.48426017]
[1761849249955,14.21430575,182.39,182.34,6.18426017]
[1761849250155,14.92430575,182.39,182.34,6.18426017]
[1761849250372,8.73152406,182.38,182.34,6.18426017]
[1761849250567,9.44152406,182.38,182.34,6.18426017]
[1761849250771,8.73152406,182.38,182.34,6.18426017]
[1761849251077,8.73152406,182.38,182.35,5.48392052]
[1761849251284,0.71,182.4,182.34,6.18421697]
[1761849251487,8.73152406,182.38,182.34,6.18421697]
[1761849251692,8.73152406,182.37,182.32,5.48473978]
[1761849251875,8.73152406,182.34,182.29,71.13152406]
[1761849252384,8.73152406,182.34,182.3,0.7]